fUSD/lending_fUSD_20251113
["ID","MTS","AMOUNT","RATE_DAILY","PERIOD"]
[393846834,1763040958832,-1000.0,0.0004288,120]
[393846835,1763040958859,-175.64,0.00042895,60]
[393846836,1763040958885,-212.0,0.0004295,30]
[393846837,1763040958911,-150.0,0.00043,120]
[393846838,1763040958939,-220.07170045,0.00043,120]
[393846839,1763040958966,-4422.76313813,0.00043,120]
[393846840,1763040958991,-203.86,0.00043014,120]
[393846841,1763040959017,-206.37744859,0.00043118,120]
[393846842,1763040959043,-180.7449,0.0004322,30]
[393846843,1763040959069,-506.63311376,0.00043299,120]
[393846844,1763040959094,-216.8,0.000434,30]
[393846845,1763040959123,-500.0,0.00043433,60]
[393846846,1763040959149,-500.0,0.00043433,60]
[393846847,1763040959175,-500.0,0.00043692,120]
[393846848,1763040959201,-200.0,0.00043692,120]
[393846849,1763040959228,-520.89428495,0.000438,120]
[393846850,1763040959255,-1141.87,0.000438,30]
[393846851,1763040959282,-259.1,0.000438,120]
[393846852,1763040959308,-500.0,0.00043836,31]
[393846853,1763040959335,-150.0,0.00043842,120]
[393846854,1763040959362,-1029.44393087,0.00044,120]
[393846855,1763040959387,-1500.0,0.00044,30]
[393846856,1763040959414,-200.0,0.00044,120]
[393846857,1763040959442,-186.22431524,0.00044,120]
[393846858,1763040959469,-153.0,0.00044,120]
[393846859,1763040959496,-155.0,0.00044,120]
[393846860,1763040959522,-1030.66299868,0.00044,120]
[393846861,1763040959550,-547.614265,0.00044,57]
[393846862,1763040959577,-158.38549183,0.0004425,120]
[393846863,1763040959605,-500.0,0.0004427,120]
[393846864,1763040959632,-329.56,0.000443,90]
[393846865,1763040959660,-206.37744859,0.00044488,120]
[393846866,1763040959687,-197.97128644,0.00044489,30]
[393846867,1763040959715,-310.92456613,0.000445,120]
[393846868,1763040959742,-225.11,0.000445,30]
[393846869,1763040959768,-500.0,0.00044529,60]
[393846870,1763040959795,-500.0,0.00044529,60]
[393846871,1763040959825,-153.0,0.000447,120]
[393846872,1763040959852,-1076.99,0.000447,30]
[393846873,1763040959881,-921.99,0.00044845,120]
[393846874,1763040959906,-212.0,0.0004496,30]
[393846875,1763040959933,-1433.77,0.00045,120]
[393846876,1763040959959,-750.0,0.00045,30]
[393846877,1763040959983,-150.0,0.00045,120]
[393846878,1763040960009,-41000.0,0.00045,30]
[393846879,1763040960034,-157.0,0.00045,85]
[393846880,1763040960062,-300.0,0.00045,60]
[393846881,1763040960094,-25000.0,0.00045,120]
[393846882,1763040960123,-7873.10940178,0.00045,120]
[393846883,1763040960151,-1433.57708769,0.00045,120]
[393846884,1763040960179,-355.19694014,0.00045,120]
[393846885,1763040960208,-509.66679504,0.00045,120]
[393846886,1763040960238,-1183.40908712,0.00045,120]
[393846887,1763040960268,-204.79346431,0.00045,30]
[393846888,1763040960302,-199.87072405,0.00045,120]
[393846889,1763040960332,-517.32962462,0.00045,120]
[393846890,1763040960363,-155.0,0.00045,120]
[393846891,1763040960392,-150.0,0.00045,45]
[393846892,1763040960421,-288.64876176,0.00045,120]
[393846893,1763040960453,-460.21764735,0.00045,120]
[393846894,1763040960485,-231.47,0.00045,120]
[393846895,1763040960522,-354.38,0.00045,120]
[393846896,1763040960555,-1619.0,0.00045,120]
[393846897,1763040960583,-917.21,0.00045,120]
[393846898,1763040960614,-634.581373,0.00045192,120]
[393846899,1763040960643,-200.0,0.00045192,120]
[393846900,1763040960670,-181.95210381,0.000452,120]
[393846901,1763040960699,-169.98,0.00045205,120]
[393846902,1763040960731,-153.0,0.000455,120]
[393846903,1763040960760,-500.0,0.00045625,60]
[393846904,1763040960790,-500.0,0.00045625,60]
[393846905,1763040960818,-1321.9903759,0.0004568,90]
[393846906,1763040960846,-206.37744859,0.00045858,120]
[393846907,1763040960880,-1000.0,0.00046,120]
[393846908,1763040960909,-1500.0,0.00046,30]
[393846909,1763040960938,-200.0,0.00046,120]
[393846910,1763040960966,-204.22297742,0.00046,30]
[393846911,1763040960993,-204.12506415,0.00046,120]
[393846912,1763040961019,-676.16821318,0.00046,90]
[393846913,1763040961045,-493.27378854,0.00046,120]
[393846914,1763040961071,-302.00714478,0.00046,120]
[393846915,1763040961261,-150.0,0.00046058,120]
[393846916,1763040961289,-500.0,0.00046059,120]
[393846917,1763040961315,-155.0,0.000461,120]
[393846918,1763040961341,-153.0,0.000462,120]
[393846919,1763040961374,-289.75384944,0.000464,120]
[393846920,1763040961399,-1240.38072304,0.00046466,120]
[393846921,1763040961426,-220.422072,0.00046692,120]
[393846922,1763040961452,-500.0,0.00046721,60]
[393846923,1763040961479,-353.68554165,0.00046721,60]
[393846924,1763040961506,-413.27521857,0.000468,120]
[393846925,1763040961533,-150.0,0.00046826,120]
[393846926,1763040961559,-153.0,0.000469,120]
[393846927,1763040961585,-212.0,0.0004698,30]
[393846928,1763040961615,-1000.0,0.00046999,120]
[393846929,1763040961641,-1259.15663342,0.00047,30]
[393846930,1763040961667,-2421.66349243,0.00047,120]
[393846931,1763040961697,-600000.0,0.00047,120]
[393846932,1763040961730,-155.0,0.000471,120]
[393846933,1763040961758,-150.0,0.00047255,120]
[393846934,1763040961783,-221.16019437,0.00047308,120]
[393846935,1763040961811,-150.0,0.00047426,120]
[393846936,1763040961835,-769.61258493,0.000475,120]
[393846937,1763040961864,-750.0,0.000475,30]
[393846938,1763040961890,-153.0,0.000477,120]
[393846939,1763040961916,-500.0,0.00047817,60]
[393846940,1763040961943,-527.022579,0.00047847,120]
[393846941,1763040961968,-1135.3351341,0.0004788,100]
[393846942,1763040961994,-320.55079874,0.00047934,60]
[393846943,1763040962021,-2000.0,0.00047945,120]
[393846944,1763040962048,-2000.0,0.00047945,120]
[393846945,1763040962074,-2000.0,0.00047945,120]
[393846946,1763040962109,-2000.0,0.00047945,120]
[393846947,1763040962140,-2000.0,0.00047945,120]
[393846948,1763040962168,-2000.0,0.00047945,120]
[393846949,1763040962196,-2000.0,0.00047945,120]
[393846950,1763040962223,-2000.0,0.00047945,120]
[393846951,1763040962249,-2000.0,0.00047945,120]
[393846952,1763040962276,-2000.0,0.00047945,120]
[393846953,1763040962302,-246.0,0.00047945,120]
[393846954,1763040962330,-1000.0,0.00047999,120]
[393846955,1763040962361,-1000000.0,0.00048,120]
[393846956,1763040962392,-5764.4511111,0.00048,120]
[393846957,1763040970148,-994235.5488889,0.00048,120]
[393846958,1763040970181,-1000000.0,0.00048,120]
[393846959,1763040970220,-1000000.0,0.00048,120]
[393846960,1763040970251,-1000000.0,0.00048,120]
[393846961,1763040970280,-246.89887641,0.00048,120]
[393846962,1763040970308,-580.31202931,0.00048,120]
[393846963,1763040970337,-159.171946,0.00048,120]
[393846964,1763040970367,-680.0,0.00048,120]
[393846965,1763040970395,-286.53,0.00048,120]
[393846966,1763040970422,-1500.0,0.00048,30]
[393846967,1763040970457,-224977.8,0.00048,120]
[393846968,1763040970486,-200.0,0.00048,120]
[393846969,1763040970516,-714433.0,0.00048,120]
[393846970,1763040970544,-1815.98425187,0.00048,120]
[393846971,1763040970574,-493.27378854,0.00048,120]
[393846972,1763040970601,-1020.22,0.00048,30]
[393846973,1763040970631,-302.00714478,0.00048,120]
[393846974,1763040970659,-155.0,0.000481,120]
[393846975,1763040970687,-580.0,0.000483,120]
[393846976,1763040970715,-153.0,0.000484,120]
[393846977,1763040970749,-58181.25307419,0.000485,120]
[393846978,1763040987763,-151.0,0.00039726,120]
[393846979,1763040987793,-273.330726,0.00039726,120]
[393846980,1763040987828,-197.172914,0.00039726,120]
[393846981,1763040987882,-500.0,0.00043836,31]
[393846982,1763040987920,-941818.74692581,0.000485,120]
[393846983,1763040987956,-1000000.0,0.000485,120]
[393846984,1763040987988,-1000000.0,0.000485,120]
[393846985,1763040988020,-1000000.0,0.000485,120]
[393846986,1763040988051,-1000000.0,0.000485,120]
[393846987,1763040988078,-279.85394178,0.000485,120]
[393846988,1763040988104,-500.0,0.00048767,120]
[393846989,1763040988130,-500.0,0.00048767,120]
[393846990,1763040988156,-500.0,0.00048767,120]
[393846991,1763040988181,-371.24948232,0.00048767,120]
[393846992,1763040988207,-585.32105163,0.000488,120]
[393846993,1763040988237,-1220.11658195,0.00048875,60]
[393846994,1763040988264,-777.85477522,0.0004888,120]
[393846995,1763040988290,-387.07539935,0.000489,120]
[393846996,1763040988316,-649.91227699,0.00048913,60]
[393846997,1763040988343,-212.0,0.0004899,30]
[393846998,1763040988371,-51076.36592495,0.00049,120]
[393846999,1763040991832,-197.172914,0.00039726,120]
[393847000,1763040991860,-197.172914,0.00039726,120]
[393847001,1763040991888,-197.172914,0.00039726,120]
[393847002,1763040991934,-197.172914,0.00040671,120]
[393847003,1763040991962,-197.172914,0.00040671,120]
[393847004,1763040992005,-948923.63407505,0.00049,120]
[393847005,1763040992037,-1000000.0,0.00049,120]
[393847006,1763040992069,-1000000.0,0.00049,120]
[393847007,1763040992099,-1000000.0,0.00049,120]
[393847008,1763040992133,-1000000.0,0.00049,120]
[393847009,1763040992161,-544.19526731,0.00049,120]
[393847010,1763040992187,-787.25838114,0.00049,30]
[393847011,1763040992214,-188.57176571,0.00049,120]
[393847012,1763040992240,-1288.22355775,0.00049,120]
[393847013,1763040992270,-1000.0,0.00049,120]
[393847014,1763040992297,-1749.48713076,0.00049,120]
[393847015,1763040992324,-2020.0,0.00049,120]
[393847016,1763040992350,-500.0,0.00049015,30]
[393847017,1763040992377,-565.74348878,0.00049015,30]
[393847018,1763040992404,-150.0,0.00049015,30]
[393847019,1763040992431,-150.0,0.00049015,30]
[393847020,1763040992456,-150.0,0.00049015,30]
[393847021,1763040992482,-200.0,0.00049015,30]
[393847022,1763040992512,-150.0,0.00049015,30]
[393847023,1763040992537,-150.0,0.00049015,30]
[393847024,1763040992567,-200.0,0.00049015,30]
[393847025,1763040992602,-150.0,0.00049015,30]
[393847026,1763040992628,-150.0,0.00049015,30]
[393847027,1763040992654,-200.0,0.00049015,30]
[393847028,1763040992680,-500.0,0.00049015,30]
[393847029,1763040992706,-500.0,0.00049015,30]
[393847030,1763040992732,-500.0,0.00049015,30]
[393847031,1763040992766,-500.0,0.00049015,30]
[393847032,1763040992793,-500.0,0.00049015,30]
[393847033,1763040992821,-500.0,0.00049015,30]
[393847034,1763040992847,-500.0,0.00049015,30]
[393847035,1763040992873,-500.0,0.00049015,30]
[393847036,1763040992900,-500.0,0.00049015,30]
[393847037,1763040992926,-500.0,0.00049015,30]
[393847038,1763040992950,-197.74868865,0.00049015,30]
[393847039,1763040992976,-150.0,0.00049015,30]
[393847040,1763040993001,-152.66728149,0.00049015,30]
[393847041,1763040993027,-150.0,0.00049015,30]
[393847042,1763040993054,-150.0,0.00049015,30]
[393847043,1763040993079,-150.0,0.00049015,30]
[393847044,1763040993104,-200.0,0.00049015,30]
[393847045,1763040993131,-500.0,0.00049015,30]
[393847046,1763040993157,-500.0,0.00049015,30]
[393847047,1763040993183,-500.0,0.00049015,30]
[393847048,1763040993213,-500.0,0.00049015,30]
[393847049,1763040993240,-500.0,0.00049015,30]
[393847050,1763040993271,-500.0,0.00049015,30]
[393847051,1763040993299,-500.0,0.00049015,30]
[393847052,1763040993328,-500.0,0.00049015,30]
[393847053,1763040993357,-500.0,0.00049015,30]
[393847054,1763040993390,-500.0,0.00049015,30]
[393847055,1763040993417,-500.0,0.00049015,30]
[393847056,1763040993444,-500.0,0.00049015,30]
[393847057,1763040993470,-500.0,0.00049015,30]
[393847058,1763040993497,-500.0,0.00049015,30]
[393847059,1763040993525,-500.0,0.00049015,30]
[393847060,1763040993551,-353.38270372,0.00049015,30]
[393847061,1763040993578,-151.07238024,0.00049015,30]
[393847062,1763040993605,-500.0,0.00049015,30]
[393847063,1763040993635,-500.0,0.00049015,30]
[393847064,1763040993662,-410.45061376,0.00049015,30]
[393847065,1763040993690,-150.0,0.00049015,30]
[393847066,1763040993731,-216.9665417,0.00049015,30]
[393847067,1763040993762,-150.0,0.00049015,30]
[393847068,1763040993790,-150.0,0.00049015,30]
[393847069,1763040993818,-150.0,0.00049015,30]
[393847070,1763040993845,-200.0,0.00049015,30]
[393847071,1763040993873,-153.0,0.000491,120]
[393847072,1763040993903,-150.0,0.00049158,120]
[393847073,1763040993929,-155.0,0.000492,120]
[393847074,1763040993957,-500.0,0.00049315,120]
[393847075,1763040993983,-500.0,0.00049315,120]
[393847076,1763040994008,-500.0,0.00049315,120]
[393847077,1763040994034,-500.0,0.00049315,120]
[393847078,1763040994060,-500.0,0.00049315,120]
[393847079,1763040994279,-500.0,0.00049315,120]
[393847080,1763040994305,-500.0,0.00049315,120]
[393847081,1763040994331,-500.0,0.00049315,120]
[393847082,1763040994356,-500.0,0.00049315,120]
[393847083,1763040994383,-500.0,0.00049315,120]
[393847084,1763040994409,-500.0,0.00049315,120]
[393847085,1763040994436,-504.52666055,0.00049315,120]
[393847086,1763040994462,-337.32010727,0.00049315,120]
[393847087,1763040994488,-783.42679292,0.00049315,30]
[393847088,1763040994514,-600.0,0.00049315,30]
[393847089,1763040994540,-600.0,0.00049315,30]
[393847090,1763040994565,-600.0,0.00049315,30]
[393847091,1763040994591,-600.0,0.00049315,30]
[393847092,1763040994620,-600.0,0.00049315,30]
[393847093,1763040994649,-600.0,0.00049315,30]
[393847094,1763040994676,-600.0,0.00049315,30]
[393847095,1763040994703,-600.0,0.00049315,30]
[393847096,1763040994731,-600.0,0.00049315,30]
[393847097,1763040994760,-600.0,0.00049315,30]
[393847098,1763040994786,-600.0,0.00049315,30]
[393847099,1763040994812,-600.0,0.00049315,30]
[393847100,1763040994837,-600.0,0.00049315,30]
[393847101,1763040994863,-600.0,0.00049315,30]
[393847102,1763040994888,-600.0,0.00049315,30]
[393847103,1763040994915,-600.0,0.00049315,30]
[393847104,1763040994942,-600.0,0.00049315,30]
[393847105,1763040994968,-600.0,0.00049315,30]
[393847106,1763040994994,-600.0,0.00049315,30]
[393847107,1763040995020,-600.0,0.00049315,30]
[393847108,1763040995046,-500.0,0.00049315,33]
[393847109,1763040995078,-3131.4599932,0.000495,120]
[393847110,1763040995867,-197.172914,0.00039726,120]
[393847111,1763040995900,-197.172914,0.00039726,120]
[393847112,1763040995954,-197.172914,0.00040671,120]
[393847113,1763040995984,-197.172914,0.00040671,120]
[393847114,1763040996028,-996868.5400068,0.000495,120]
[393847115,1763040996062,-1000000.0,0.000495,120]
[393847116,1763040996096,-1000000.0,0.000495,120]
[393847117,1763040996132,-1000000.0,0.000495,120]
[393847118,1763040996167,-1000000.0,0.000495,120]
[393847119,1763040996197,-1161.22318543,0.000495,120]
[393847120,1763040996225,-1181.54515177,0.000495,120]
[393847121,1763040999508,-197.172914,0.00039726,120]
[393847122,1763040999539,-197.172914,0.00039726,120]
[393847123,1763040999571,-197.172914,0.00039726,120]
[393847124,1763040999604,-197.172914,0.00039726,120]
[393847125,1763040999636,-197.172914,0.00039726,120]
[393847126,1763040999670,-197.172914,0.00039726,120]
[393847127,1763040999699,-151.0,0.00039726,120]
[393847128,1763040999745,-197.172914,0.00040671,120]
[393847129,1763040999773,-197.172914,0.00040671,120]
[393847130,1763040999802,-197.172914,0.00040671,120]
[393847131,1763040999831,-197.172914,0.00040671,120]
[393847132,1763040999867,-150.0,0.00049015,120]
[393847133,1763040999894,-150.0,0.00049499,120]
[393847134,1763040999927,-150.0,0.00049499,120]
[393847135,1763040999955,-150.0,0.00049499,120]
[393847136,1763040999981,-6179.73797118,0.000495,120]
[393847137,1763041000007,-500.0,0.00049767,60]
[393847138,1763041000033,-600.0,0.000498,120]
[393847139,1763041000060,-921.99,0.00049892,120]
[393847140,1763041000087,-3103.21212691,0.000499,120]
[393847141,1763041000114,-153.0,0.000499,120]
[393847142,1763041000141,-1000.0,0.00049999,120]
[393847143,1763041000167,-454.64994694,0.00049999,120]
[393847144,1763041000192,-500.0,0.00049999,120]
[393847145,1763041000219,-198.97259765,0.00049999,120]
[393847146,1763041000247,-400.80703798,0.00049999,120]
[393847147,1763041000280,-183.12280488,0.00049999,120]
[393847148,1763041000309,-528.69175164,0.00049999,120]
[393847149,1763041000339,-500.0,0.00049999,120]
[393847150,1763041000366,-581.48516894,0.00049999,120]
[393847151,1763041000395,-500.0,0.00049999,120]
[393847152,1763041000422,-500.0,0.00049999,120]
[393847153,1763041000450,-500.0,0.00049999,120]
[393847154,1763041000477,-500.0,0.00049999,120]
[393847155,1763041000508,-50000.0,0.0005,51]
[393847156,1763041000540,-1000000.0,0.0005,120]
[393847157,1763041000568,-1000.0,0.0005,120]
[393847158,1763041000599,-1000000.0,0.0005,120]
[393847159,1763041000630,-1000000.0,0.0005,120]
[393847160,1763041000660,-1433.77,0.0005,120]
[393847161,1763041000690,-1000000.0,0.0005,120]
[393847162,1763041000715,-1533.49557494,0.0005,120]
[393847163,1763041000748,-925504.33587894,0.0005,120]
[393847164,1763041006187,-162.08496227,0.00047779,30]
[393847165,1763041006215,-150.0,0.00049015,120]
[393847166,1763041006242,-150.0,0.00049015,120]
[393847167,1763041006268,-150.0,0.00049015,120]
[393847168,1763041006295,-150.0,0.00049152,120]
[393847169,1763041006321,-150.0,0.00049152,120]
[393847170,1763041006348,-200.0,0.00049289,120]
[393847171,1763041006373,-200.0,0.00049289,120]
[393847172,1763041006400,-500.0,0.00049499,120]
[393847173,1763041006427,-220.24098133,0.00049499,120]
[393847174,1763041006455,-150.0,0.00049499,120]
[393847175,1763041006481,-150.0,0.00049499,120]
[393847176,1763041006507,-163.03237847,0.00049499,120]
[393847177,1763041006533,-500.0,0.00049499,120]
[393847178,1763041006564,-74495.66412106,0.0005,120]
[393847179,1763041006590,-457.72199812,0.0005,120]
[393847180,1763041006616,-735.62979195,0.0005,120]
[393847181,1763041006642,-1073.27899357,0.0005,120]
[393847182,1763041006669,-1083.33703616,0.0005,120]
[393847183,1763041006695,-225.03998704,0.0005,120]
[393847184,1763041006719,-165.07826133,0.0005,120]
[393847185,1763041006747,-500.0,0.0005,30]
[393847186,1763041006775,-829.21,0.0005,60]
[393847187,1763041006803,-150.0,0.0005,120]
[393847188,1763041006831,-200.0,0.0005,120]
[393847189,1763041006862,-1009.0,0.0005,120]
[393847190,1763041006887,-398.22891349,0.0005,60]
[393847191,1763041006912,-1976.0,0.0005,120]
[393847192,1763041006940,-155.2171883,0.0005,120]
[393847193,1763041006969,-1832.84850906,0.0005,30]
[393847194,1763041006996,-50000.0,0.0005,120]
[393847195,1763041007025,-300.0,0.0005,120]
[393847196,1763041007052,-10000.0,0.0005,120]
[393847197,1763041007079,-1000.0,0.0005,120]
[393847198,1763041007105,-200.0,0.0005,120]
[393847199,1763041007131,-2500.0,0.0005,30]
[393847200,1763041007158,-150.0,0.0005,45]
[393847201,1763041007183,-1000.0,0.0005,60]
[393847202,1763041007209,-200.0,0.0005,50]
[393847203,1763041007234,-200.0,0.0005,30]
[393847204,1763041007260,-231.47,0.0005,120]
[393847205,1763041007286,-354.38,0.0005,120]
[393847206,1763041007313,-917.21,0.0005,120]
[393847207,1763041007338,-50000.0,0.0005,120]
[393847208,1763041007364,-566.01701686,0.0005,120]
[393847209,1763041007389,-302.0,0.0005,120]
[393847210,1763041007417,-500.0,0.00050041,60]
[393847211,1763041007442,-906.0,0.00050048,120]
[393847212,1763041007469,-155.0,0.000502,120]
[393847213,1763041007496,-500.0,0.00050315,60]
[393847214,1763041007525,-1000000.0,0.000505,120]
[393847215,1763041007553,-1000000.0,0.000505,120]
[393847216,1763041007582,-1000000.0,0.000505,120]
[393847217,1763041007608,-2194.41387239,0.000505,120]
[393847218,1763041007634,-500.0,0.00050589,60]
[393847219,1763041007662,-153.0,0.000506,120]
[393847220,1763041007689,-150.0,0.00050788,120]
[393847221,1763041007717,-150.0,0.00050863,120]
[393847222,1763041007747,-500.0,0.00050863,60]
[393847223,1763041007772,-217.98119282,0.00050879,120]
[393847224,1763041007799,-200.0,0.00050891,120]
[393847225,1763041007828,-1137.38645348,0.000509,120]
[393847226,1763041007856,-1000.0,0.00050999,120]
[393847227,1763041007886,-1000000.0,0.00051,120]
[393847228,1763041007914,-1000.0,0.00051,120]
[393847229,1763041007948,-784533.5283423,0.00051,120]
[393847230,1763041011475,-1725.16456899,0.00047789,30]
[393847231,1763041011502,-150.0,0.00049015,120]
[393847232,1763041011529,-150.0,0.00049015,120]
[393847233,1763041011555,-500.0,0.00049015,120]
[393847234,1763041011582,-150.0,0.00049152,120]
[393847235,1763041011607,-500.0,0.00049152,120]
[393847236,1763041011634,-200.0,0.00049289,120]
[393847237,1763041011659,-500.0,0.00049289,120]
[393847238,1763041011686,-500.0,0.00049499,120]
[393847239,1763041011713,-500.0,0.00049499,120]
[393847240,1763041011743,-173.11884486,0.00049499,120]
[393847241,1763041011774,-215466.4716577,0.00051,120]
[393847242,1763041011803,-986.54757709,0.00051,120]
[393847243,1763041011831,-1055.0,0.00051,120]
[393847244,1763041011866,-604.01428955,0.00051,120]
[393847245,1763041011893,-367.77127106,0.00051,120]
[393847246,1763041011920,-500.0,0.00051137,60]
[393847247,1763041011945,-155.0,0.000512,120]
[393847248,1763041011970,-153.0,0.000513,120]
[393847249,1763041011996,-150.0,0.00051305,120]
[393847250,1763041012022,-500.0,0.00051411,60]
[393847251,1763041012052,-1000000.0,0.000515,120]
[393847252,1763041012080,-1000000.0,0.000515,120]
[393847253,1763041012105,-1853.39,0.000516,120]
[393847254,1763041012129,-1853.39,0.000516,120]
[393847255,1763041012153,-1853.39,0.000516,120]
[393847256,1763041012179,-500.0,0.00051685,60]
[393847257,1763041012204,-500.0,0.00051755,30]
[393847258,1763041012230,-500.0,0.00051755,30]
[393847259,1763041012256,-500.0,0.00051755,30]
[393847260,1763041012282,-500.0,0.00051755,30]
[393847261,1763041012307,-500.0,0.00051755,30]
[393847262,1763041012334,-500.0,0.00051755,30]
[393847263,1763041012360,-500.0,0.00051755,30]
[393847264,1763041012387,-500.0,0.00051755,30]
[393847265,1763041012417,-500.0,0.00051755,30]
[393847266,1763041012443,-500.0,0.00051755,30]
[393847267,1763041012470,-500.0,0.00051755,30]
[393847268,1763041012497,-500.0,0.00051755,30]
[393847269,1763041012528,-500.0,0.00051755,30]
[393847270,1763041012554,-500.0,0.00051755,30]
[393847271,1763041012581,-500.0,0.00051755,30]
[393847272,1763041012606,-500.0,0.00051755,30]
[393847273,1763041012632,-616.24845379,0.00051755,30]
[393847274,1763041012658,-500.0,0.00051755,30]
[393847275,1763041012685,-500.0,0.00051755,30]
[393847276,1763041012711,-500.0,0.00051755,30]
[393847277,1763041012740,-500.0,0.00051755,30]
[393847278,1763041012772,-500.0,0.00051755,30]
[393847279,1763041012800,-500.0,0.00051755,30]
[393847280,1763041012827,-500.0,0.00051755,30]
[393847281,1763041012853,-500.0,0.00051755,30]
[393847282,1763041012879,-500.0,0.00051755,30]
[393847283,1763041012905,-500.0,0.00051755,30]
[393847284,1763041012941,-374.95389872,0.00051755,30]
[393847285,1763041012968,-200.0,0.00051755,30]
[393847286,1763041012996,-500.0,0.00051755,30]
[393847287,1763041013025,-150.0,0.00051755,30]
[393847288,1763041013055,-500.0,0.00051755,30]
[393847289,1763041013082,-500.0,0.00051755,30]
[393847290,1763041013109,-200.0,0.000518,120]
[393847291,1763041013135,-438.99,0.000518,120]
[393847292,1763041013163,-804.2,0.00051959,60]
[393847293,1763041013190,-1000.0,0.00051999,120]
[393847294,1763041013216,-1102.44521298,0.00052,120]
[393847295,1763041013243,-1000.0,0.00052,120]
[393847296,1763041013268,-800.0,0.00052,120]
[393847297,1763041013296,-200.0,0.00052,120]
[393847298,1763041013323,-775.0784791,0.00052,120]
[393847299,1763041013355,-1298.0,0.00052,30]
[393847300,1763041013384,-500.0,0.00052054,120]
[393847301,1763041013416,-776.67252039,0.00052054,30]
[393847302,1763041013444,-908.8,0.00052055,120]
[393847303,1763041013508,914.0,0.00049499,120]
[393847304,1763041013548,914.0,0.00049499,120]
[393847305,1763041013591,914.0,0.00049499,120]
[393847306,1763041013628,150.0,0.00051755,30]
[393847307,1763041013664,914.0,0.00049499,120]
[393847308,1763041013696,914.0,0.00049499,120]
[393847309,1763041013739,914.0,0.00049499,120]
[393847310,1763041013777,914.0,0.00049499,120]
[393847311,1763041013815,914.0,0.00049499,120]
[393847312,1763041013851,151.67420441,0.00051755,30]
[393847313,1763041013884,914.0,0.00049499,120]
[393847314,1763041013934,914.0,0.00049499,120]
[393847315,1763041013974,914.0,0.00049499,120]
[393847316,1763041014010,500.0,0.00051,120]
[393847317,1763041014045,914.0,0.00049499,120]
[393847318,1763041014082,500.0,0.00051274,120]
[393847319,1763041014121,914.0,0.00049499,120]
[393847320,1763041014158,500.0,0.00051548,120]
[393847321,1763041014190,914.0,0.00049499,120]
[393847322,1763041014251,914.0,0.00049499,120]
[393847323,1763041014464,500.0,0.00051822,120]
[393847324,1763041014505,914.0,0.00049499,120]
[393847325,1763041014550,914.0,0.00049499,120]
[393847326,1763041014709,914.0,0.00049499,120]
[393847327,1763041014885,914.0,0.00049499,120]
[393847328,1763041015240,914.0,0.00049499,120]
[393847329,1763041015799,914.0,0.00049499,120]
[393847330,1763041015955,914.0,0.00049499,120]
[393847331,1763041016130,500.0,0.00051755,30]
[393847332,1763041016194,914.0,0.00049499,120]
[393847333,1763041016249,790.95554794,0.00051977,30]